Workbook

Sheet Status Quo
A1: Day | B1: =RANDBETWEEN(1,6) -> 5 | C1: =RANDBETWEEN(1,6) -> 6 | E1: =RANDBETWEEN(1,6) -> 5 | G1: =RANDBETWEEN(1,6) -> 2 | I1: =RANDBETWEEN(1,6) -> 1 | K1: =RANDBETWEEN(1,6) -> 3 | M1: Closed | N1: Planned Average Throughput | O1: Actual Throughput | P1: Work in Progress
B2: Gatekeeper | C2: A | E2: B | G2: C | I2: D | K2: E
B3: Rolled | C3: WIP | D3: Rolled | E3: WIP | F3: Rolled | G3: WIP | H3: Rolled | I3: WIP | J3: Rolled | K3: WIP | L3: Rolled
A4: Start | B4: 0 | C4: 4 | E4: 4 | G4: 4 | I4: 4 | K4: 4 | P4: =K4+I4+G4+E4+C4 -> 20
A5: 1 | B5: 1 | C5: 1 | D5: 5 | E5: 5 | F5: 3 | G5: 6 | H5: 1 | I5: 1 | J5: 4 | K5: 5 | L5: 3 | M5: 3 | N5: =N4+3.25 -> 3.25 | O5: =IF(ISBLANK(A5),"",M5+O4) -> 3 | P5: =IF(ISBLANK(A5),"",K5+I5+G5+E5+C5) -> 18
A6: 2 | B6: 6 | C6: 1 | D6: 6 | E6: 1 | F6: 6 | G6: 9 | H6: 2 | I6: 2 | J6: 5 | K6: 4 | L6: 2 | M6: 2 | N6: =IF(ISBLANK(A6),"",N5+$N$5) -> 6.5 | O6: 5 | P6: =IF(ISBLANK(A6),"",K6+I6+G6+E6+C6) -> 17
A7: 3 | B7: 2 | C7: 2 | D7: 3 | E7: 1 | F7: 2 | G7: 8 | H7: 2 | I7: 2 | J7: 4 | K7: 4 | L7: 2 | M7: 2 | N7: =IF(ISBLANK(A7),"",N6+$N$5) -> 9.75 | O7: 7 | P7: 17
A8: 4 | B8: 3 | C8: 4 | D8: 1 | E8: 1 | F8: 2 | G8: 5 | H8: 4 | I8: 4 | J8: 5 | K8: 2 | L8: 6 | M8: 4 | N8: 13 | O8: 11 | P8: 16
A9: 5 | B9: 3 | C9: 3 | D9: 6 | E9: 4 | F9: 6 | G9: 5 | H9: 1 | I9: 4 | J9: 1 | K9: 1 | L9: 4 | M9: 2 | N9: 16.25 | O9: 13 | P9: 17
A10: 6 | B10: 4 | C10: 4 | D10: 6 | E10: 3 | F10: 5 | G10: 5 | H10: 4 | I10: 4 | J10: 4 | K10: 4 | L10: 5 | M10: 1 | N10: 19.5 | O10: 14 | P10: 20
A11: 7 | B11: 3 | C11: 3 | D11: 5 | E11: 4 | F11: 3 | G11: 3 | H11: 6 | I11: 5 | J11: 4 | K11: 5 | L11: 3 | M11: 3 | N11: 22.75 | O11: 17 | P11: 20
A12: 8 | B12: 6 | C12: 7 | D12: 2 | E12: 2 | F12: 4 | G12: 4 | H12: 5 | I12: 5 | J12: 3 | K12: 6 | L12: 2 | M12: 2 | N12: 26 | O12: 19 | P12: 24
A13: 9 | B13: 2 | C13: 8 | D13: 1 | E13: 2 | F13: 1 | G13: 4 | H13: 1 | I13: 2 | J13: 4 | K13: 8 | L13: 2 | M13: 2 | N13: 29.25 | O13: 21 | P13: 24
A14: 10 | B14: 3 | C14: 6 | D14: 5 | E14: 5 | F14: 6 | G14: 2 | H14: 5 | I14: 4 | J14: 5 | K14: 6 | L14: 4 | M14: 4 | N14: 32.5 | O14: 25 | P14: 23
A15: 11 | B15: 5 | C15: 9 | D15: 2 | E15: 5 | F15: 2 | G15: 2 | H15: 6 | I15: 2 | J15: 6 | K15: 4 | L15: 6 | M15: 6 | N15: 35.75 | O15: 31 | P15: 22
A16: 12 | B16: 4 | C16: 11 | D16: 2 | E16: 2 | F16: 6 | G16: 5 | H16: 4 | I16: 2 | J16: 4 | K16: 5 | L16: 1 | M16: 1 | N16: 39 | O16: 32 | P16: 25
A17: 13 | B17: 5 | C17: 15 | D17: 1 | E17: 1 | F17: 3 | G17: 3 | H17: 4 | I17: 4 | J17: 5 | K17: 2 | L17: 5 | M17: 5 | N17: 42.25 | O17: 37 | P17: 25
A18: 14 | B18: 1 | C18: 12 | D18: 4 | E18: 4 | F18: 6 | G18: 1 | H18: 5 | I18: 4 | J18: 3 | K18: 3 | L18: 4 | M18: 2 | N18: 45.5 | O18: 39 | P18: 24
A19: 15 | B19: 6 | C19: 13 | D19: 5 | E19: 5 | F19: 6 | G19: 4 | H19: 2 | I19: 1 | J19: 6 | K19: 4 | L19: 3 | M19: 3 | N19: 48.75 | O19: 42 | P19: 27
A20: 16 | B20: 6 | C20: 18 | D20: 1 | E20: 4 | F20: 2 | G20: 5 | H20: 1 | I20: 1 | J20: 5 | K20: 1 | L20: 6 | M20: 4 | N20: 52 | O20: 46 | P20: 29
A21: 17 | B21: 4 | C21: 16 | D21: 6 | E21: 6 | F21: 4 | G21: 4 | H21: 5 | I21: 5 | J21: 2 | K21: 1 | L21: 4 | M21: 1 | N21: 55.25 | O21: 47 | P21: 32
A22: 18 | B22: 4 | C22: 17 | D22: 3 | E22: 7 | F22: 2 | G22: 2 | H22: 4 | I22: 4 | J22: 6 | K22: 5 | L22: 5 | M22: 1 | N22: 58.5 | O22: 48 | P22: 35
A23: 19 | B23: 3 | C23: 18 | D23: 2 | E23: 7 | F23: 2 | G23: 2 | H23: 2 | I23: 2 | J23: 6 | K23: 8 | L23: 1 | M23: 1 | N23: 61.75 | O23: 49 | P23: 37
A24: 20 | B24: 2 | C24: 17 | D24: 3 | E24: 6 | F24: 4 | G24: 5 | H24: 1 | I24: 2 | J24: 1 | K24: 8 | L24: 1 | M24: 1 | N24: 65 | O24: 50 | P24: 38
B25: =IF(ISBLANK(A25),"",$B$1) ->  | C25: =IF(ISBLANK($A25),"",IF(D25>C24,0,(C24-D25))+IF(B25>A24,A24,B25)) ->  | D25: =IF(ISBLANK(A25),"",$C$1) ->  | E25: =IF(ISBLANK($A25),"",IF(F25>E24,0,(E24-F25))+IF(D25>C24,C24,D25)) ->  | F25: =IF(ISBLANK(A25),"",$E$1) ->  | G25: =IF(ISBLANK($A25),"",IF(H25>G24,0,(G24-H25))+IF(F25>E24,E24,F25)) ->  | H25: =IF(ISBLANK(A25),"",$G$1) ->  | I25: =IF(ISBLANK($A25),"",IF(J25>I24,0,(I24-J25))+IF(H25>G24,G24,H25)) ->  | J25: =IF(ISBLANK(A25),"",$I$1) ->  | K25: =IF(ISBLANK($A25),"",IF(L25>K24,0,(K24-L25))+IF(J25>I24,I24,J25)) ->  | L25: =IF(ISBLANK(A25),"",$K$1) ->  | M25: =IF(ISBLANK(A25),"",MIN(K24,L25)) ->  | N25: =IF(ISBLANK(A25),"",N24+ 3.5) -> 
C31: Silo Averages | D31: =AVERAGE(D5:D24) -> 3.45 | F31: =AVERAGE(F5:F24) -> 3.75 | H31: =AVERAGE(H5:H24) -> 3.25 | J31: =AVERAGE(J5:J24) -> 4.15 | L31: =AVERAGE(L5:L24) -> 3.45
L32: Average | M32: =AVERAGE(M5:M22) -> 2.666666667
L33: Std Dev | M33: =STDEV(M5:M22) -> 1.45521375
L34: WIP Impact | P34: =(P24-P4)/P4 -> 0.9
L35: Week 1 | M35: =SUM(M5:M9) -> 13 | N35: =3.25*5 -> 16.25 | O35: =(M35-N35)/N35 -> -0.2
L36: Week 2 | M36: =SUM(M10:M14) -> 12 | N36: =3.25*5 -> 16.25 | O36: =(M36-N36)/N36 -> -0.2615384615
L37: Week 3 | M37: =SUM(M15:M19) -> 17 | N37: =3.25*5 -> 16.25 | O37: =(M37-N37)/N37 -> 0.04615384615
L38: Week 3 | M38: =SUM(M20:M24) -> 8 | N38: =3.25*5 -> 16.25 | O38: =(M38-N38)/N38 -> -0.5076923077
M39: =SUM(M35:M38) -> 50 | N39: =SUM(N35:N38) -> 65 | O39: =(M39-N39)/N39 -> -0.2307692308
E134: Description of the system
F135: Each team/process step can complete between 1 and 6 tasks every day
F136: Random number generated indicates completed tasks for each day
F137: In a 4 week period (without working weekends), 3.5 tasks should be completed on average
F138: Goal is to completed between 65 and 70 tasks in 20 days
F139: Work moves to the next step at the end of the day
E147: Improvement opportunities
F148: Move dependency out a sprint
F149: QE involved sizing and commitment
F150: Break items down into small pieces
F151: Stick your bottleneck in the front
F152: feeding at a pace that downstream can handle
F153: bring slack in the system
F154: increase capacity
F155: improve estimates

Sheet With Constraint
A1: Day | B1: =RANDBETWEEN(1,6) -> 4 | C1: =RANDBETWEEN(1,6)+RANDBETWEEN(1,6) -> 7 | E1: =RANDBETWEEN(1,6)+RANDBETWEEN(1,6) -> 5 | G1: =B1 -> 4 | I1: =RANDBETWEEN(1,6)+RANDBETWEEN(1,6) -> 7 | K1: =RANDBETWEEN(1,6)+RANDBETWEEN(1,6) -> 4 | M1: Closed | N1: Planned Average Throughput | O1: Actual Throughput | P1: Work in Progress
B2: Gatekeeper | C2: A | E2: B | G2: C | I2: D | K2: E
B3: Rolled | C3: WIP | D3: Rolled | E3: WIP | F3: Rolled | G3: WIP | H3: Rolled | I3: WIP | J3: Rolled | K3: WIP | L3: Rolled
A4: Start | B4: 0 | C4: 4 | E4: 4 | G4: 12 | I4: 4 | K4: 4 | P4: =K4+I4+G4+E4+C4 -> 28
A5: 1 | B5: 1 | C5: 1 | D5: 10 | E5: 4 | F5: 9 | G5: 15 | H5: 1 | I5: 1 | J5: 9 | K5: 4 | L5: 9 | M5: 4 | N5: =N4+3.25 -> 3.25 | O5: =IF(ISBLANK(A5),"",M5+O4) -> 4 | P5: =IF(ISBLANK(A5),"",K5+I5+G5+E5+C5) -> 25
A6: 2 | B6: 1 | C6: 1 | D6: 7 | E6: 1 | F6: 5 | G6: 18 | H6: 1 | I6: 1 | J6: 10 | K6: 1 | L6: 7 | M6: 4 | N6: =IF(ISBLANK(A6),"",N5+$N$5) -> 6.5 | O6: 8 | P6: =IF(ISBLANK(A6),"",K6+I6+G6+E6+C6) -> 22
A7: 3 | B7: 1 | C7: 1 | D7: 9 | E7: 1 | F7: 7 | G7: 18 | H7: 1 | I7: 1 | J7: 7 | K7: 1 | L7: 6 | M7: 1 | N7: =IF(ISBLANK(A7),"",N6+$N$5) -> 9.75 | O7: 9 | P7: 22
A8: 4 | B8: 1 | C8: 1 | D8: 11 | E8: 1 | F8: 4 | G8: 18 | H8: 1 | I8: 1 | J8: 2 | K8: 1 | L8: 9 | M8: 1 | N8: 13 | O8: 10 | P8: 22
A9: 5 | B9: 4 | C9: 4 | D9: 6 | E9: 1 | F9: 8 | G9: 15 | H9: 4 | I9: 4 | J9: 7 | K9: 1 | L9: 6 | M9: 1 | N9: 16.25 | O9: 11 | P9: 25
A10: 6 | B10: 3 | C10: 3 | D10: 8 | E10: 4 | F10: 7 | G10: 13 | H10: 3 | I10: 3 | J10: 8 | K10: 4 | L10: 4 | M10: 1 | N10: 19.5 | O10: 12 | P10: 27
A11: 7 | B11: 5 | C11: 5 | D11: 11 | E11: 3 | F11: 10 | G11: 12 | H11: 5 | I11: 5 | J11: 5 | K11: 3 | L11: 6 | M11: 4 | N11: 22.75 | O11: 16 | P11: 28
A12: 8 | B12: 5 | C12: 7 | D12: 3 | E12: 3 | F12: 10 | G12: 10 | H12: 5 | I12: 5 | J12: 7 | K12: 5 | L12: 10 | M12: 3 | N12: 26 | O12: 19 | P12: 30
A13: 9 | B13: 4 | C13: 4 | D13: 10 | E13: 7 | F13: 12 | G13: 9 | H13: 4 | I13: 5 | J13: 4 | K13: 4 | L13: 8 | M13: 5 | N13: 29.25 | O13: 24 | P13: 29
A14: 10 | B14: 5 | C14: 5 | D14: 4 | E14: 4 | F14: 11 | G14: 11 | H14: 5 | I14: 5 | J14: 8 | K14: 5 | L14: 6 | M14: 4 | N14: 32.5 | O14: 28 | P14: 30
A15: 11 | B15: 6 | C15: 6 | D15: 6 | E15: 5 | F15: 6 | G15: 9 | H15: 6 | I15: 6 | J15: 9 | K15: 5 | L15: 8 | M15: 5 | N15: 35.75 | O15: 33 | P15: 31
A16: 12 | B16: 6 | C16: 6 | D16: 8 | E16: 6 | F16: 5 | G16: 8 | H16: 6 | I16: 6 | J16: 7 | K16: 6 | L16: 10 | M16: 5 | N16: 39 | O16: 38 | P16: 32
A17: 13 | B17: 3 | C17: 3 | D17: 8 | E17: 9 | F17: 3 | G17: 8 | H17: 3 | I17: 3 | J17: 6 | K17: 6 | L17: 6 | M17: 6 | N17: 42.25 | O17: 44 | P17: 29
A18: 14 | B18: 1 | C18: 1 | D18: 7 | E18: 6 | F18: 6 | G18: 13 | H18: 1 | I18: 1 | J18: 5 | K18: 3 | L18: 6 | M18: 6 | N18: 45.5 | O18: 50 | P18: 24
A19: 15 | B19: 1 | C19: 1 | D19: 7 | E19: 3 | F19: 4 | G19: 16 | H19: 1 | I19: 1 | J19: 9 | K19: 1 | L19: 7 | M19: 3 | N19: 48.75 | O19: 53 | P19: 22
A20: 16 | B20: 6 | C20: 6 | D20: 6 | E20: 1 | F20: 8 | G20: 13 | H20: 6 | I20: 6 | J20: 6 | K20: 1 | L20: 6 | M20: 1 | N20: 52 | O20: 54 | P20: 27
A21: 17 | B21: 1 | C21: 1 | D21: 8 | E21: 6 | F21: 7 | G21: 13 | H21: 1 | I21: 1 | J21: 6 | K21: 6 | L21: 6 | M21: 1 | N21: 55.25 | O21: 55 | P21: 27
A22: 18 | B22: 6 | C22: 6 | D22: 8 | E22: 2 | F22: 5 | G22: 12 | H22: 6 | I22: 6 | J22: 8 | K22: 2 | L22: 5 | M22: 5 | N22: 58.5 | O22: 60 | P22: 28
A23: 19 | B23: 1 | C23: 1 | D23: 8 | E23: 6 | F23: 4 | G23: 13 | H23: 1 | I23: 4 | J23: 3 | K23: 3 | L23: 12 | M23: 2 | N23: 61.75 | O23: 62 | P23: 27
A24: 20 | B24: 3 | C24: 3 | D24: 7 | E24: 1 | F24: 7 | G24: 16 | H24: 3 | I24: 3 | J24: 8 | K24: 4 | L24: 4 | M24: 3 | N24: 65 | O24: 65 | P24: 27
B25: =IF(ISBLANK(A25),"",$B$1) ->  | C25: =IF(ISBLANK($A25),"",IF(D25>C24,0,(C24-D25))+IF(B25>A24,A24,B25)) ->  | D25: =IF(ISBLANK(A25),"",$C$1) ->  | E25: =IF(ISBLANK($A25),"",IF(F25>E24,0,(E24-F25))+IF(D25>C24,C24,D25)) ->  | F25: =IF(ISBLANK(A25),"",$E$1) ->  | G25: =IF(ISBLANK($A25),"",IF(H25>G24,0,(G24-H25))+IF(F25>E24,E24,F25)) ->  | H25: =IF(ISBLANK(A25),"",$G$1) ->  | I25: =IF(ISBLANK($A25),"",IF(J25>I24,0,(I24-J25))+IF(H25>G24,G24,H25)) ->  | J25: =IF(ISBLANK(A25),"",$I$1) ->  | K25: =IF(ISBLANK($A25),"",IF(L25>K24,0,(K24-L25))+IF(J25>I24,I24,J25)) ->  | L25: =IF(ISBLANK(A25),"",$K$1) ->  | M25: =IF(ISBLANK(A25),"",MIN(K24,L25)) ->  | N25: =IF(ISBLANK(A25),"",N24+ 3.5) -> 
B26: =IF(ISBLANK(A26),"",$B$1) ->  | C26: =IF(ISBLANK($A26),"",IF(D26>C25,0,(C25-D26))+IF(B26>A25,A25,B26)) ->  | D26: =IF(ISBLANK(A26),"",$C$1) ->  | E26: =IF(ISBLANK($A26),"",IF(F26>E25,0,(E25-F26))+IF(D26>C25,C25,D26)) ->  | F26: =IF(ISBLANK(A26),"",$E$1) ->  | G26: =IF(ISBLANK($A26),"",IF(H26>G25,0,(G25-H26))+IF(F26>E25,E25,F26)) ->  | H26: =IF(ISBLANK(A26),"",$G$1) ->  | I26: =IF(ISBLANK($A26),"",IF(J26>I25,0,(I25-J26))+IF(H26>G25,G25,H26)) ->  | J26: =IF(ISBLANK(A26),"",$I$1) ->  | K26: =IF(ISBLANK($A26),"",IF(L26>K25,0,(K25-L26))+IF(J26>I25,I25,J26)) ->  | L26: =IF(ISBLANK(A26),"",$K$1) ->  | M26: =IF(ISBLANK(A26),"",MIN(K25,L26)) -> 
C31: Silo Average | D31: =AVERAGE(D5:D24) -> 7.6 | F31: =AVERAGE(F5:F24) -> 6.9 | H31: =AVERAGE(H5:H24) -> 3.2 | J31: =AVERAGE(J5:J24) -> 6.7 | L31: =AVERAGE(L5:L24) -> 7.05
C32: Std Dev | D32: =_xlfn.STDEV.S(D5:D24) -> 2.062190966 | F32: =_xlfn.STDEV.S(F5:F24) -> 2.531901719 | H32: =_xlfn.STDEV.S(H5:H24) -> 2.067289097 | J32: =_xlfn.STDEV.S(J5:J24) -> 2.105131575 | L32: =_xlfn.STDEV.S(L5:L24) -> 2.089447169
L33: Average | M33: =AVERAGE(M5:M22) -> 3.333333333
L34: Std Dev | M34: =STDEV(M5:M22) -> 1.878672873
L35: WIP Impact | P35: =(P24-P4)/P4 -> -0.03571428571
L36: Week 1 | M36: =SUM(M5:M9) -> 11 | N36: =3.25*5 -> 16.25 | O36: =(M36-N36)/N36 -> -0.3230769231
L37: Week 2 | M37: =SUM(M10:M14) -> 17 | N37: =3.25*5 -> 16.25 | O37: =(M37-N37)/N37 -> 0.04615384615
L38: Week 3 | M38: =SUM(M15:M19) -> 25 | N38: =3.25*5 -> 16.25 | O38: =(M38-N38)/N38 -> 0.5384615385
L39: Week 3 | M39: =SUM(M20:M24) -> 12 | N39: =3.25*5 -> 16.25 | O39: =(M39-N39)/N39 -> -0.2615384615
M40: =SUM(M36:M39) -> 65 | N40: =SUM(N36:N39) -> 65 | O40: =(M40-N40)/N40 -> 0
G88: Description of the system
H89: Each team/process step can complete between 1 and 6 tasks every day
H90: Random number generated indicates completed tasks for each day
H91: In a 4 week period (without working weekends), 3.5 tasks should be completed on average
H92: Goal is to completed between 65 and 70 tasks in 20 days
H93: Work moves to the next step at the end of the day
G101: Improvement opportunities
H102: Move dependency out a sprint
H103: QE involved sizing and commitment
H104: Break items down into small pieces
H105: Stick your bottleneck in the front
H106: feeding at a pace that downstream can handle
H107: bring slack in the system
H108: increase capacity
H109: improve estimates

Sheet Statistics
A1: Simulation # | B1: Planned | C1: Status Quo | D1: With Constraint | G1: Status Quo | H1: With Constraint
A2: 1 | B2: 65 | C2: 59 | D2: 69 | F2: Average | G2: =AVERAGE(C2:C43) -> 52.92857143 | H2: =AVERAGE(D2:D43) -> 63.42857143
A3: 2 | B3: 65 | C3: 54 | D3: 67 | F3: Std Dev | G3: =_xlfn.STDEV.P(C2:C43) -> 3.912086626 | H3: =_xlfn.STDEV.P(D2:D43) -> 4.192640134
A4: 3 | B4: 65 | C4: 51 | D4: 61 | F4: Median | G4: =MEDIAN(C2:C43) -> 53 | H4: =MEDIAN(D2:D43) -> 64
A5: 4 | B5: 65 | C5: 51 | D5: 65
A6: 5 | B6: 65 | C6: 49 | D6: 64
A7: 6 | B7: 65 | C7: 50 | D7: 62
A8: 7 | B8: 65 | C8: 46 | D8: 63
A9: 8 | B9: 65 | C9: 47 | D9: 62
A10: 9 | B10: 65 | C10: 49 | D10: 65
A11: 10 | B11: 65 | C11: 58 | D11: 59
A12: 11 | B12: 65 | C12: 47 | D12: 57
A13: 12 | B13: 65 | C13: 58 | D13: 64
A14: 13 | B14: 65 | C14: 57 | D14: 64
A15: 14 | B15: 65 | C15: 58 | D15: 64
A16: 15 | B16: 65 | C16: 57 | D16: 61
A17: 16 | B17: 65 | C17: 52 | D17: 57
A18: 17 | B18: 65 | C18: 53 | D18: 58
A19: 18 | B19: 65 | C19: 47 | D19: 67
A20: 19 | B20: 65 | C20: 56 | D20: 69
A21: 20 | B21: 65 | C21: 56 | D21: 66
A22: 21 | B22: 65 | C22: 54 | D22: 67
A23: 22 | B23: 65 | C23: 45 | D23: 59
A24: 23 | B24: 65 | C24: 57 | D24: 67
A25: 24 | B25: 65 | C25: 55 | D25: 69
A26: 25 | B26: 65 | C26: 56 | D26: 57
A27: 26 | B27: 65 | C27: 51 | D27: 63
A28: 27 | B28: 65 | C28: 55 | D28: 58
A29: 28 | B29: 65 | C29: 55 | D29: 67
A30: 29 | B30: 65 | C30: 49 | D30: 60
A31: 30 | B31: 65 | C31: 55 | D31: 69
A32: 31 | B32: 65 | C32: 59 | D32: 61
A33: 32 | B33: 65 | C33: 57 | D33: 57
A34: 33 | B34: 65 | C34: 52 | D34: 65
A35: 34 | B35: 65 | C35: 53 | D35: 61
A36: 35 | B36: 65 | C36: 50 | D36: 62
A37: 36 | B37: 65 | C37: 53 | D37: 57
A38: 37 | B38: 65 | C38: 49 | D38: 68
A39: 38 | B39: 65 | C39: 47 | D39: 67
A40: 39 | B40: 65 | C40: 57 | D40: 60
A41: 40 | B41: 65 | C41: 53 | D41: 66
A42: 41 | B42: 65 | C42: 56 | D42: 75
A43: 42 | B43: 65 | C43: 50 | D43: 65

Sheet Spreadsheet Usage
A2: In order to start a new simulation, copy cells "A25 to M25" and paste into "A5 to M24"
A3: Only key in the days in column A. All other cells from B to M will populate automatically
A4: Click on the "Paste Value" button to ensure that the current row values are static and prevent change when new random number is generated
A5: Do not enter anything in column A after A30. The macro is quite basic and will get messed up.
A6: Enable macros so that you can use the "Paste Value" button. The alternative is to copy and "paste special-->values" for every day you want to simulate.
